[Event "Live Chess"]
[Site "Chess.com"]
[Date "2023.05.21"]
[Round "-"]
[White "ShanthamGrarks"]
[Black "raminguy"]
[Result "1-0"]
[WhiteElo "2015"]
[BlackElo "1937"]
[TimeControl "300"]
[EndTime "17:33:40 PDT"]
[Termination "ShanthamGrarks won by resignation"]

1. d4 {[%clk 0:04:56.1]} 1... d5 {[%clk 0:04:58.7]} 2. Nc3 {[%clk 0:04:54]} 2...
Nf6 {[%clk 0:04:57.3]} 3. e4 {[%clk 0:04:53.2]} 3... dxe4 {[%clk 0:04:55.3]} 4.
f3 {[%clk 0:04:52.5]} 4... e6 {[%clk 0:04:54.6]} 5. fxe4 {[%clk 0:04:50.5]} 5...
Bb4 {[%clk 0:04:53.4]} 6. Bg5 {[%clk 0:04:47.6]} 6... h6 {[%clk 0:04:49.5]} 7.
Bxf6 {[%clk 0:04:46.4]} 7... Qxf6 {[%clk 0:04:48.1]} 8. Nf3 {[%clk 0:04:46]}
8... O-O {[%clk 0:04:45.8]} 9. Bd3 {[%clk 0:04:43]} 9... c5 {[%clk 0:04:44.3]}
10. O-O {[%clk 0:04:36.3]} 10... Bxc3 {[%clk 0:04:41.2]} 11. bxc3 {[%clk
0:04:34.4]} 11... cxd4 {[%clk 0:04:40.1]} 12. cxd4 {[%clk 0:04:34]} 12... Nc6
{[%clk 0:04:38.8]} 13. e5 {[%clk 0:04:31.6]} 13... Qd8 {[%clk 0:04:36.7]} 14.
Kh1 {[%clk 0:04:24.6]} 14... Kh8 {[%clk 0:04:33.5]} 15. c3 {[%clk 0:04:22]}
15... Qa5 {[%clk 0:04:31]} 16. Rc1 {[%clk 0:04:11.8]} 16... Qxa2 {[%clk
0:04:27.6]} 17. Bc2 {[%clk 0:04:10.8]} 17... Qa6 {[%clk 0:04:19.8]} 18. Nh4
{[%clk 0:03:54.2]} 18... Ne7 {[%clk 0:04:18.1]} 19. Qd2 {[%clk 0:03:52.1]} 19...
b6 {[%clk 0:04:05]} 20. Rf6 {[%clk 0:03:45.9]} 20... Ng8 {[%clk 0:03:33.9]} 21.
Ng6+ {[%clk 0:03:28.5]} 21... fxg6 {[%clk 0:03:09.2]} 22. Rxf8 {[%clk
0:03:26.9]} 22... Bb7 {[%clk 0:03:03.8]} 23. Rxa8 {[%clk 0:03:25.3]} 23... Bxa8
{[%clk 0:03:02.3]} 24. Bxg6 {[%clk 0:03:22.7]} 24... Qb7 {[%clk 0:02:34.8]} 25.
Re1 {[%clk 0:03:17.5]} 25... a5 {[%clk 0:02:32]} 26. Be4 {[%clk 0:03:14.1]}
26... Qb8 {[%clk 0:02:26.8]} 27. Bb1 {[%clk 0:03:04.7]} 27... Qb7 {[%clk
0:02:25.5]} 28. Qc2 {[%clk 0:03:03.2]} 28... g5 {[%clk 0:02:17.6]} 29. Rf1
{[%clk 0:02:52.3]} 29... a4 {[%clk 0:02:08.6]} 30. Rf8 {[%clk 0:02:48.8]} 30...
a3 {[%clk 0:02:04.2]} 31. Rxa8 {[%clk 0:02:43.5]} 1-0

[Event "Live Chess"]
[Site "Chess.com"]
[Date "2023.05.21"]
[Round "-"]
[White "therealab0ne"]
[Black "Biranidun"]
[Result "0-1"]
[WhiteElo "708"]
[BlackElo "2639"]
[TimeControl "300"]
[EndTime "17:34:08 PDT"]
[Termination "Biranidun won by checkmate"]

1. e4 {[%clk 0:04:58.6]} 1... c5 {[%clk 0:04:59.1]} 2. Nc3 {[%clk 0:04:57.2]}
2... d6 {[%clk 0:04:58.2]} 3. Nge2 {[%clk 0:04:55.7]} 3... Nf6 {[%clk
0:04:57.3]} 4. g3 {[%clk 0:04:54.4]} 4... g6 {[%clk 0:04:56.6]} 5. Bg2 {[%clk
0:04:53.2]} 5... Bg7 {[%clk 0:04:56.3]} 6. O-O {[%clk 0:04:51.6]} 6... O-O
{[%clk 0:04:56.1]} 7. d3 {[%clk 0:04:48.2]} 7... Nc6 {[%clk 0:04:55.7]} 8. b3
{[%clk 0:04:28.2]} 8... Bg4 {[%clk 0:04:46.9]} 9. a4 {[%clk 0:04:24.3]} 9...
Bxe2 {[%clk 0:04:44.3]} 10. Nxe2 {[%clk 0:04:12.2]} 10... Nd7 {[%clk 0:04:42]}
11. Ba3 {[%clk 0:03:52.7]} 11... Bxa1 {[%clk 0:04:37.9]} 12. Qxa1 {[%clk
0:03:48.6]} 12... e5 {[%clk 0:04:35.4]} 13. c3 {[%clk 0:03:36.7]} 13... a6
{[%clk 0:04:32.8]} 14. d4 {[%clk 0:03:35.5]} 14... b5 {[%clk 0:04:29.4]} 15.
axb5 {[%clk 0:03:11.2]} 15... axb5 {[%clk 0:04:29.3]} 16. dxc5 {[%clk
0:03:06.7]} 16... Nxc5 {[%clk 0:04:27]} 17. b4 {[%clk 0:03:05]} 17... Na4 {[%clk
0:04:22.6]} 18. Qc1 {[%clk 0:03:02.7]} 18... Nb6 {[%clk 0:04:20.6]} 19. f4
{[%clk 0:02:56.5]} 19... Nc4 {[%clk 0:04:18.9]} 20. Bb2 {[%clk 0:02:45.5]} 20...
Ra2 {[%clk 0:04:16.7]} 21. Ba1 {[%clk 0:02:36.3]} 21... Rxe2 {[%clk 0:04:15]}
22. Bf3 {[%clk 0:02:22.8]} 22... Qb6+ {[%clk 0:04:12.5]} 23. Kh1 {[%clk
0:02:03.5]} 23... Rf2 {[%clk 0:04:12]} 24. Rxf2 {[%clk 0:02:01.8]} 24... Qxf2
{[%clk 0:04:11.3]} 25. f5 {[%clk 0:01:51.4]} 25... Qxf3+ {[%clk 0:04:10.3]} 26.
Kg1 {[%clk 0:01:48.1]} 26... Ne3 {[%clk 0:04:10.2]} 27. Qc2 {[%clk 0:01:43.3]}
27... Qf1# {[%clk 0:04:08.9]} 0-1

[Event "Live Chess"]
[Site "Chess.com"]
[Date "2023.05.21"]
[Round "-"]
[White "Tilbs_12"]
[Black "EdenHazard8"]
[Result "0-1"]
[WhiteElo "1557"]
[BlackElo "2003"]
[TimeControl "300"]
[EndTime "17:34:14 PDT"]
[Termination "EdenHazard8 won by resignation"]

1. e4 {[%clk 0:04:58.1]} 1... c6 {[%clk 0:04:58.8]} 2. d4 {[%clk 0:04:56]} 2...
d5 {[%clk 0:04:58.7]} 3. exd5 {[%clk 0:04:55.1]} 3... cxd5 {[%clk 0:04:58.6]} 4.
c4 {[%clk 0:04:54.3]} 4... Nc6 {[%clk 0:04:58.5]} 5. Nc3 {[%clk 0:04:52.8]} 5...
dxc4 {[%clk 0:04:55.6]} 6. Bxc4 {[%clk 0:04:51.3]} 6... Nf6 {[%clk 0:04:52.7]}
7. Nf3 {[%clk 0:04:43.5]} 7... Bg4 {[%clk 0:04:51.7]} 8. d5 {[%clk 0:04:21.7]}
8... Ne5 {[%clk 0:04:44.8]} 9. Be2 {[%clk 0:04:20.2]} 9... Nxf3+ {[%clk
0:04:37.2]} 10. Bxf3 {[%clk 0:04:18.7]} 10... Bxf3 {[%clk 0:04:35.9]} 11. Qxf3
{[%clk 0:04:17.8]} 11... g6 {[%clk 0:04:31]} 12. O-O {[%clk 0:04:14.9]} 12...
Bg7 {[%clk 0:04:29.7]} 13. Rd1 {[%clk 0:04:13.7]} 13... O-O {[%clk 0:04:28.4]}
14. Bf4 {[%clk 0:04:08.4]} 14... Qb6 {[%clk 0:04:18.8]} 15. Rab1 {[%clk
0:04:01.8]} 15... Rfd8 {[%clk 0:04:14.6]} 16. a3 {[%clk 0:03:57]} 16... Nd7
{[%clk 0:04:00.5]} 17. Be3 {[%clk 0:03:48.1]} 17... Qa5 {[%clk 0:03:52.4]} 18.
Ne4 {[%clk 0:03:42.9]} 18... Ne5 {[%clk 0:03:47.4]} 19. Qf4 {[%clk 0:03:23]}
19... Rxd5 {[%clk 0:03:44.3]} 20. Ng5 {[%clk 0:03:11.9]} 20... Rf8 {[%clk
0:03:14.9]} 21. Nf3 {[%clk 0:03:03.5]} 21... Nd3 {[%clk 0:03:11.4]} 22. Qc4
{[%clk 0:02:52.2]} 22... Rfd8 {[%clk 0:03:06.1]} 23. Qb3 {[%clk 0:02:01]} 23...
Nxb2 {[%clk 0:02:42.1]} 24. Rxd5 {[%clk 0:01:58.6]} 24... Qxd5 {[%clk 0:02:42]}
25. h3 {[%clk 0:01:50.6]} 25... Qxb3 {[%clk 0:02:40.1]} 0-1

[Event "Live Chess"]
[Site "Chess.com"]
[Date "2023.05.21"]
[Round "-"]
[White "DerbyKnight"]
[Black "Hussamalhaidar"]
[Result "1-0"]
[WhiteElo "1572"]
[BlackElo "1070"]
[TimeControl "300"]
[EndTime "17:34:41 PDT"]
[Termination "DerbyKnight won on time"]

1. e4 {[%clk 0:04:55.5]} 1... Nc6 {[%clk 0:04:54.1]} 2. d4 {[%clk 0:04:51.6]}
2... e5 {[%clk 0:04:51.7]} 3. Nf3 {[%clk 0:04:48.7]} 3... exd4 {[%clk
0:04:47.2]} 4. Nxd4 {[%clk 0:04:47.2]} 4... Nxd4 {[%clk 0:04:44.7]} 5. Qxd4
{[%clk 0:04:47.1]} 5... Nf6 {[%clk 0:04:42.8]} 6. e5 {[%clk 0:04:44.3]} 6... Qe7
{[%clk 0:04:32.9]} 7. Bg5 {[%clk 0:04:32.7]} 7... d6 {[%clk 0:04:30]} 8. f4
{[%clk 0:04:24.4]} 8... c5 {[%clk 0:03:58.9]} 9. Qa4+ {[%clk 0:04:11.9]} 9...
Bd7 {[%clk 0:03:54.3]} 10. Bb5 {[%clk 0:04:07.8]} 10... Rd8 {[%clk 0:03:45.2]}
11. O-O {[%clk 0:04:03.7]} 11... h6 {[%clk 0:03:21.4]} 12. exf6 {[%clk
0:03:52.9]} 12... Qe3+ {[%clk 0:03:14.7]} 13. Kh1 {[%clk 0:03:44.1]} 13... hxg5
{[%clk 0:03:11.9]} 14. fxg5 {[%clk 0:03:29.2]} 14... gxf6 {[%clk 0:02:34.4]} 15.
gxf6 {[%clk 0:03:18.2]} 15... Bxb5 {[%clk 0:02:08.5]} 16. Qxb5+ {[%clk
0:03:14.7]} 16... Rd7 {[%clk 0:02:03.9]} 17. Nc3 {[%clk 0:03:12.6]} 17... Qh6
{[%clk 0:01:48.7]} 18. Rae1+ {[%clk 0:02:54.6]} 18... Kd8 {[%clk 0:01:45.3]} 19.
h3 {[%clk 0:02:47.7]} 19... b6 {[%clk 0:01:04.9]} 20. Qc6 {[%clk 0:02:39.8]}
20... Qd2 {[%clk 0:00:53]} 21. Qa8+ {[%clk 0:02:24.3]} 21... Kc7 {[%clk
0:00:47.5]} 22. Qxa7+ {[%clk 0:02:20.6]} 22... Kc6 {[%clk 0:00:45.5]} 23. Qa4+
{[%clk 0:02:17.1]} 23... Kc7 {[%clk 0:00:40.1]} 24. Nb5+ {[%clk 0:02:14.8]}
24... Kb7 {[%clk 0:00:33.7]} 25. Re8 {[%clk 0:02:01.6]} 25... Qa5 {[%clk
0:00:24.5]} 26. Qxa5 {[%clk 0:01:46.7]} 26... bxa5 {[%clk 0:00:22.3]} 27. Nc3
{[%clk 0:01:40.8]} 27... Bh6 {[%clk 0:00:18.9]} 28. Rxh8 {[%clk 0:01:36.4]}
28... Be3 {[%clk 0:00:15.9]} 29. Nd5 {[%clk 0:01:33.6]} 1-0

[Event "Live Chess"]
[Site "Chess.com"]
[Date "2023.05.21"]
[Round "-"]
[White "domrobson"]
[Black "raminguy"]
[Result "0-1"]
[WhiteElo "1736"]
[BlackElo "1941"]
[TimeControl "300"]
[EndTime "17:34:52 PDT"]
[Termination "raminguy won by checkmate"]

1. d4 {[%clk 0:04:59.6]} 1... d5 {[%clk 0:04:58.4]} 2. c4 {[%clk 0:04:59]} 2...
e6 {[%clk 0:04:57.5]} 3. Nf3 {[%clk 0:04:58.3]} 3... a6 {[%clk 0:04:57]} 4. Nc3
{[%clk 0:04:57.7]} 4... dxc4 {[%clk 0:04:56.3]} 5. e3 {[%clk 0:04:57.1]} 5... b5
{[%clk 0:04:55.7]} 6. a4 {[%clk 0:04:56.3]} 6... b4 {[%clk 0:04:53.9]} 7. Na2
{[%clk 0:04:55]} 7... Qd5 {[%clk 0:04:50.2]} 8. Bd2 {[%clk 0:04:45.8]} 8... a5
{[%clk 0:04:48.2]} 9. Rc1 {[%clk 0:04:44.1]} 9... Ba6 {[%clk 0:04:46.3]} 10. Be2
{[%clk 0:04:40.7]} 10... Nf6 {[%clk 0:04:42.8]} 11. O-O {[%clk 0:04:39.7]} 11...
Nbd7 {[%clk 0:04:38.3]} 12. Ne5 {[%clk 0:04:38.8]} 12... Nxe5 {[%clk 0:04:35.4]}
13. dxe5 {[%clk 0:04:38.1]} 13... Qxe5 {[%clk 0:04:30.7]} 14. Bxc4 {[%clk
0:04:37.3]} 14... Bxc4 {[%clk 0:04:28.3]} 15. Rxc4 {[%clk 0:04:36.1]} 15... Bd6
{[%clk 0:04:26.6]} 16. b3 {[%clk 0:04:32]} 16... Qxh2# {[%clk 0:04:24.8]} 0-1

[Event "Live Chess"]
[Site "Chess.com"]
[Date "2023.05.21"]
[Round "-"]
[White "romchyk1219"]
[Black "Long1968"]
[Result "1-0"]
[WhiteElo "634"]
[BlackElo "1049"]
[TimeControl "300"]
[EndTime "17:35:05 PDT"]
[Termination "romchyk1219 won on time"]

1. e4 {[%clk 0:04:59]} 1... e6 {[%clk 0:04:55.9]} 2. d4 {[%clk 0:04:57.3]} 2...
d5 {[%clk 0:04:53.3]} 3. e5 {[%clk 0:04:56.5]} 3... c5 {[%clk 0:04:51]} 4. Nf3
{[%clk 0:04:54.4]} 4... cxd4 {[%clk 0:04:48.2]} 5. Nxd4 {[%clk 0:04:52.7]} 5...
Nc6 {[%clk 0:04:45.8]} 6. Nxc6 {[%clk 0:04:51.2]} 6... bxc6 {[%clk 0:04:43.4]}
7. Bd3 {[%clk 0:04:50.9]} 7... a5 {[%clk 0:04:39.4]} 8. O-O {[%clk 0:04:50.1]}
8... Ba6 {[%clk 0:04:37]} 9. b3 {[%clk 0:04:44.4]} 9... Bc5 {[%clk 0:04:27.2]}
10. Bxa6 {[%clk 0:04:36.2]} 10... Rxa6 {[%clk 0:04:22.4]} 11. Bb2 {[%clk
0:04:36.1]} 11... Qb6 {[%clk 0:04:08.3]} 12. h3 {[%clk 0:04:30.1]} 12... Ne7
{[%clk 0:04:02.1]} 13. Qc1 {[%clk 0:04:25.2]} 13... Ng6 {[%clk 0:03:58.5]} 14.
Nc3 {[%clk 0:04:19.3]} 14... Qc7 {[%clk 0:03:16.1]} 15. Ne2 {[%clk 0:04:13.7]}
15... Nxe5 {[%clk 0:03:05]} 16. Qf4 {[%clk 0:04:04.1]} 16... Bd6 {[%clk
0:02:58.4]} 17. Ng3 {[%clk 0:03:55]} 17... O-O {[%clk 0:02:25]} 18. Nh5 {[%clk
0:03:43.7]} 18... Ng6 {[%clk 0:02:09.8]} 19. Qg5 {[%clk 0:03:23.9]} 19... Be5
{[%clk 0:01:51.5]} 20. Bxe5 {[%clk 0:03:18.3]} 20... Qxe5 {[%clk 0:01:48.7]} 21.
Qxe5 {[%clk 0:03:17.1]} 21... Nxe5 {[%clk 0:01:46.8]} 22. Rfe1 {[%clk
0:03:13.4]} 22... Nd7 {[%clk 0:01:33.8]} 23. Re3 {[%clk 0:03:06.8]} 23... e5
{[%clk 0:01:27.3]} 24. Rg3 {[%clk 0:03:04.5]} 24... g6 {[%clk 0:01:21.8]} 25.
Nf6+ {[%clk 0:02:43.7]} 25... Nxf6 {[%clk 0:01:18.1]} 26. Re1 {[%clk 0:02:43.2]}
26... e4 {[%clk 0:01:14.9]} 27. f3 {[%clk 0:02:40.1]} 27... Kg7 {[%clk
0:01:07.8]} 28. fxe4 {[%clk 0:02:38.5]} 28... Nxe4 {[%clk 0:01:05.3]} 29. Rge3
{[%clk 0:02:36.1]} 29... f5 {[%clk 0:01:02.4]} 30. c4 {[%clk 0:02:33.2]} 30...
d4 {[%clk 0:00:54.1]} 31. Rd3 {[%clk 0:02:28.5]} 31... c5 {[%clk 0:00:48.5]} 32.
a3 {[%clk 0:02:24.5]} 32... Re8 {[%clk 0:00:43.8]} 33. b4 {[%clk 0:02:21.1]}
33... axb4 {[%clk 0:00:36.4]} 34. axb4 {[%clk 0:02:20.1]} 34... cxb4 {[%clk
0:00:20.8]} 35. Rxd4 {[%clk 0:02:16.8]} 35... b3 {[%clk 0:00:18.4]} 36. g4
{[%clk 0:02:12.4]} 36... b2 {[%clk 0:00:14.5]} 37. gxf5 {[%clk 0:02:07.5]} 37...
Ra1 {[%clk 0:00:10]} 38. Rd7+ {[%clk 0:02:04.7]} 38... Kg8 {[%clk 0:00:05]} 39.
Rd4 {[%clk 0:01:47]} 39... Rxe1+ {[%clk 0:00:01.6]} 40. Kg2 {[%clk 0:01:44.8]}
1-0

[Event "Live Chess"]
[Site "Chess.com"]
[Date "2023.05.21"]
[Round "-"]
[White "Doge_Dandolo"]
[Black "LodeshChess"]
[Result "1-0"]
[WhiteElo "1961"]
[BlackElo "1156"]
[TimeControl "300"]
[EndTime "17:35:07 PDT"]
[Termination "Doge_Dandolo won by resignation"]

1. Nf3 {[%clk 0:04:58.9]} 1... c6 {[%clk 0:04:54.4]} 2. c4 {[%clk 0:04:55.6]}
2... d5 {[%clk 0:04:52.8]} 3. g3 {[%clk 0:04:53.1]} 3... Nf6 {[%clk 0:04:51.1]}
4. Bg2 {[%clk 0:04:52]} 4... Bg4 {[%clk 0:04:47.1]} 5. Qb3 {[%clk 0:04:50.3]}
5... e6 {[%clk 0:04:45.6]} 6. Qxb7 {[%clk 0:04:47.3]} 6... Nbd7 {[%clk
0:04:45.2]} 7. Qxc6 {[%clk 0:04:45.1]} 7... Be7 {[%clk 0:04:38.6]} 8. cxd5
{[%clk 0:04:42.7]} 8... Nxd5 {[%clk 0:04:34.7]} 9. O-O {[%clk 0:04:40.2]} 9...
O-O {[%clk 0:04:33]} 10. Nc3 {[%clk 0:04:38.4]} 10... Nxc3 {[%clk 0:04:31.5]}
11. dxc3 {[%clk 0:04:36.4]} 11... Bxf3 {[%clk 0:04:28.4]} 12. Bxf3 {[%clk
0:04:35.1]} 12... Ne5 {[%clk 0:04:27.4]} 13. Qxa8 {[%clk 0:04:32.5]} 1-0

[Event "Live Chess"]
[Site "Chess.com"]
[Date "2023.05.21"]
[Round "-"]
[White "wot-not"]
[Black "CeladonFish"]
[Result "1-0"]
[WhiteElo "1542"]
[BlackElo "1096"]
[TimeControl "300"]
[EndTime "17:35:25 PDT"]
[Termination "wot-not won by resignation"]

1. e4 {[%clk 0:04:56.6]} 1... d6 {[%clk 0:04:59.1]} 2. f4 {[%clk 0:04:55.7]}
2... Nf6 {[%clk 0:04:58.2]} 3. e5 {[%clk 0:04:54.5]} 3... dxe5 {[%clk
0:04:57.1]} 4. fxe5 {[%clk 0:04:54.2]} 4... Nd5 {[%clk 0:04:47.8]} 5. Nf3 {[%clk
0:04:52.3]} 5... e6 {[%clk 0:04:46.7]} 6. d4 {[%clk 0:04:49]} 6... Nc6 {[%clk
0:04:40.4]} 7. Bd3 {[%clk 0:04:37.2]} 7... Ncb4 {[%clk 0:04:26.1]} 8. O-O {[%clk
0:04:28]} 8... Nxd3 {[%clk 0:04:24.4]} 9. Qxd3 {[%clk 0:04:22.3]} 9... g6 {[%clk
0:04:15.6]} 10. Ng5 {[%clk 0:04:19.2]} 10... Nb4 {[%clk 0:03:54.2]} 11. Qe4
{[%clk 0:04:01.6]} 11... f5 {[%clk 0:03:43.6]} 12. exf6 {[%clk 0:03:56.9]} 12...
Nc6 {[%clk 0:03:09.2]} 13. Nxe6 {[%clk 0:03:36.4]} 13... Nb8 {[%clk 0:02:46.2]}
14. Nxd8+ {[%clk 0:03:34.4]} 1-0

[Event "Live Chess"]
[Site "Chess.com"]
[Date "2023.05.21"]
[Round "-"]
[White "AlanPaling"]
[Black "jimwad"]
[Result "1-0"]
[WhiteElo "1393"]
[BlackElo "1249"]
[TimeControl "300"]
[EndTime "17:35:46 PDT"]
[Termination "AlanPaling won by resignation"]

1. c4 {[%clk 0:04:58.8]} 1... e5 {[%clk 0:04:57.8]} 2. Nc3 {[%clk 0:04:57.3]}
2... Nc6 {[%clk 0:04:55.3]} 3. g3 {[%clk 0:04:56.3]} 3... Nf6 {[%clk 0:04:51.7]}
4. Bg2 {[%clk 0:04:55.5]} 4... Bc5 {[%clk 0:04:49]} 5. e3 {[%clk 0:04:54.2]}
5... d6 {[%clk 0:04:46.9]} 6. Nge2 {[%clk 0:04:53.1]} 6... O-O {[%clk
0:04:45.5]} 7. O-O {[%clk 0:04:51.3]} 7... Be6 {[%clk 0:04:19.1]} 8. d4 {[%clk
0:04:49.6]} 8... exd4 {[%clk 0:04:17.5]} 9. exd4 {[%clk 0:04:48.4]} 9... Bb4
{[%clk 0:04:15.9]} 10. d5 {[%clk 0:04:47.3]} 10... Bxd5 {[%clk 0:04:12.4]} 11.
cxd5 {[%clk 0:04:45.1]} 11... Ne5 {[%clk 0:04:11.2]} 12. a3 {[%clk 0:04:37]}
12... Bc5 {[%clk 0:04:08.6]} 13. Ne4 {[%clk 0:04:30.1]} 13... Nxe4 {[%clk
0:04:05]} 14. Bxe4 {[%clk 0:04:28.4]} 14... f5 {[%clk 0:03:53.4]} 15. Bg2 {[%clk
0:04:25.8]} 15... Ng4 {[%clk 0:03:45.7]} 16. h3 {[%clk 0:04:15.9]} 16... Nxf2
{[%clk 0:03:43]} 17. Rxf2 {[%clk 0:04:14.6]} 17... Bxf2+ {[%clk 0:03:41.4]} 18.
Kxf2 {[%clk 0:04:13.6]} 18... Qg5 {[%clk 0:03:26.8]} 19. Bxg5 {[%clk 0:04:09.4]}
1-0

[Event "Live Chess"]
[Site "Chess.com"]
[Date "2023.05.21"]
[Round "-"]
[White "alanmike75"]
[Black "SupremeTactician"]
[Result "1/2-1/2"]
[WhiteElo "1562"]
[BlackElo "2334"]
[TimeControl "300"]
[EndTime "17:35:51 PDT"]
[Termination "Game drawn by stalemate"]

1. e4 {[%clk 0:04:59.1]} 1... e5 {[%clk 0:04:58.5]} 2. Nf3 {[%clk 0:04:57.8]}
2... Nc6 {[%clk 0:04:57.4]} 3. Bc4 {[%clk 0:04:54.3]} 3... Bc5 {[%clk
0:04:56.5]} 4. d3 {[%clk 0:04:52.8]} 4... Nf6 {[%clk 0:04:55.6]} 5. Be3 {[%clk
0:04:51.3]} 5... Bb6 {[%clk 0:04:54.7]} 6. Bxb6 {[%clk 0:04:49.6]} 6... axb6
{[%clk 0:04:54.6]} 7. Nc3 {[%clk 0:04:46.9]} 7... O-O {[%clk 0:04:49.3]} 8. Nd5
{[%clk 0:04:45]} 8... d6 {[%clk 0:04:48.1]} 9. a3 {[%clk 0:04:40.5]} 9... Be6
{[%clk 0:04:46.3]} 10. Nxf6+ {[%clk 0:04:37.9]} 10... Qxf6 {[%clk 0:04:45.3]}
11. Bxe6 {[%clk 0:04:33.8]} 11... fxe6 {[%clk 0:04:45.2]} 12. O-O {[%clk
0:04:30]} 12... Nd4 {[%clk 0:04:42.8]} 13. Nxd4 {[%clk 0:04:28.4]} 13... exd4
{[%clk 0:04:42.7]} 14. f4 {[%clk 0:04:25.2]} 14... e5 {[%clk 0:04:39.9]} 15. f5
{[%clk 0:04:21.8]} 15... g6 {[%clk 0:04:37.7]} 16. Qg4 {[%clk 0:04:16.7]} 16...
Kh8 {[%clk 0:04:35.5]} 17. fxg6 {[%clk 0:04:13.9]} 17... Qxg6 {[%clk 0:04:35.4]}
18. Qxg6 {[%clk 0:04:12.6]} 18... hxg6 {[%clk 0:04:35.3]} 19. Rae1 {[%clk
0:04:02.2]} 19... Kg7 {[%clk 0:04:21.9]} 20. g3 {[%clk 0:04:00.8]} 20... Rxf1+
{[%clk 0:04:20.3]} 21. Rxf1 {[%clk 0:03:59.7]} 21... b5 {[%clk 0:04:18.3]} 22.
Kg2 {[%clk 0:03:54.6]} 22... b6 {[%clk 0:03:59.7]} 23. h3 {[%clk 0:03:52.3]}
23... c5 {[%clk 0:03:43.9]} 24. Rf3 {[%clk 0:03:44.5]} 24... b4 {[%clk
0:03:41.8]} 25. axb4 {[%clk 0:03:41.1]} 25... cxb4 {[%clk 0:03:41.7]} 26. b3
{[%clk 0:03:40]} 26... Ra2 {[%clk 0:03:38.2]} 27. Rf2 {[%clk 0:03:38.9]} 27...
Rb2 {[%clk 0:03:29.5]} 28. Kf3 {[%clk 0:03:36.7]} 28... Kf6 {[%clk 0:03:26.5]}
29. Kg4+ {[%clk 0:03:32]} 29... Ke6 {[%clk 0:03:26]} 30. Kg5 {[%clk 0:03:29.4]}
30... d5 {[%clk 0:03:25.2]} 31. Rf6+ {[%clk 0:03:16.4]} 31... Kd7 {[%clk
0:03:22.9]} 32. Rxb6 {[%clk 0:02:56]} 32... dxe4 {[%clk 0:03:20.8]} 33. dxe4
{[%clk 0:02:54.3]} 33... Rxc2 {[%clk 0:03:19.9]} 34. Rxb4 {[%clk 0:02:51.8]}
34... d3 {[%clk 0:03:12.2]} 35. Rb5 {[%clk 0:02:50.5]} 35... d2 {[%clk
0:03:06.4]} 36. Rd5+ {[%clk 0:02:48.7]} 36... Ke6 {[%clk 0:03:06.1]} 37. Kxg6
{[%clk 0:02:42.9]} 37... Rc3 {[%clk 0:03:05.4]} 38. Rxd2 {[%clk 0:02:38.4]}
38... Rxg3+ {[%clk 0:03:04.5]} 39. Kh5 {[%clk 0:02:35.6]} 39... Rxh3+ {[%clk
0:03:03.9]} 40. Kg4 {[%clk 0:02:32.5]} 40... Rxb3 {[%clk 0:03:03.8]} 41. Rc2
{[%clk 0:02:28.4]} 41... Kd6 {[%clk 0:03:00.7]} 42. Rd2+ {[%clk 0:02:26.8]}
42... Ke6 {[%clk 0:02:59.9]} 43. Rc2 {[%clk 0:02:25.7]} 43... Rb6 {[%clk
0:02:57]} 44. Rh2 {[%clk 0:02:22.6]} 44... Rb4 {[%clk 0:02:55.6]} 45. Rh6+
{[%clk 0:02:18.1]} 45... Kd7 {[%clk 0:02:49]} 46. Kf5 {[%clk 0:02:17.1]} 46...
Rb5 {[%clk 0:02:47]} 47. Rh7+ {[%clk 0:02:14.7]} 47... Kd6 {[%clk 0:02:45.6]}
48. Rh6+ {[%clk 0:02:13.5]} 48... Kd7 {[%clk 0:02:45]} 49. Re6 {[%clk
0:02:07.4]} 49... Ra5 {[%clk 0:02:44.2]} 50. Rxe5 {[%clk 0:02:06.1]} 50... Rxe5+
{[%clk 0:02:43.8]} 51. Kxe5 {[%clk 0:02:05.2]} 51... Ke7 {[%clk 0:02:43.7]} 52.
Kd5 {[%clk 0:02:03.8]} 52... Kd7 {[%clk 0:02:43.2]} 53. Ke5 {[%clk 0:02:02.1]}
53... Ke7 {[%clk 0:02:42.6]} 54. Kf5 {[%clk 0:01:54.2]} 54... Kf7 {[%clk
0:02:41.3]} 55. e5 {[%clk 0:01:52.7]} 55... Ke7 {[%clk 0:02:40.7]} 56. e6 {[%clk
0:01:51.6]} 56... Ke8 {[%clk 0:02:39.7]} 57. Kf6 {[%clk 0:01:49]} 57... Kf8
{[%clk 0:02:38.6]} 58. e7+ {[%clk 0:01:46]} 58... Ke8 {[%clk 0:02:37.9]} 59. Ke6
{[%clk 0:01:45.1]} 1/2-1/2

[Event "Live Chess"]
[Site "Chess.com"]
[Date "2023.05.21"]
[Round "-"]
[White "Conradical12"]
[Black "gmnorfolk"]
[Result "0-1"]
[WhiteElo "1626"]
[BlackElo "2119"]
[TimeControl "300"]
[EndTime "17:35:53 PDT"]
[Termination "gmnorfolk won by resignation"]

1. e4 {[%clk 0:04:58]} 1... c5 {[%clk 0:04:58.2]} 2. Nc3 {[%clk 0:04:56.1]} 2...
g6 {[%clk 0:04:53.1]} 3. Nf3 {[%clk 0:04:53.6]} 3... Bg7 {[%clk 0:04:51.4]} 4.
d4 {[%clk 0:04:52.1]} 4... cxd4 {[%clk 0:04:49.2]} 5. Nxd4 {[%clk 0:04:50]} 5...
Nc6 {[%clk 0:04:49.1]} 6. Nb3 {[%clk 0:04:49.1]} 6... Nf6 {[%clk 0:04:47.3]} 7.
Be3 {[%clk 0:04:48.7]} 7... O-O {[%clk 0:04:44.9]} 8. Qd2 {[%clk 0:04:48.3]}
8... a5 {[%clk 0:04:39.7]} 9. a4 {[%clk 0:04:40.8]} 9... d5 {[%clk 0:04:35.2]}
10. O-O-O {[%clk 0:04:38.7]} 10... Nxe4 {[%clk 0:04:28.2]} 11. Nxe4 {[%clk
0:04:35.2]} 11... dxe4 {[%clk 0:04:27.9]} 12. Qxd8 {[%clk 0:04:33.3]} 12... Rxd8
{[%clk 0:04:26.2]} 13. Rxd8+ {[%clk 0:04:30.6]} 13... Nxd8 {[%clk 0:04:26.1]}
14. Bb5 {[%clk 0:04:24.7]} 14... Nc6 {[%clk 0:04:21.2]} 15. Bxc6 {[%clk
0:04:22.9]} 15... bxc6 {[%clk 0:04:19.8]} 16. Rd1 {[%clk 0:04:22.2]} 16... Be6
{[%clk 0:04:18.2]} 17. Nc5 {[%clk 0:04:18.7]} 17... Bd5 {[%clk 0:04:12.1]} 18.
b3 {[%clk 0:04:15.3]} 18... f5 {[%clk 0:04:10.8]} 19. c4 {[%clk 0:04:11.7]}
19... Bf7 {[%clk 0:04:09.2]} 20. Rd7 {[%clk 0:04:08]} 20... e5 {[%clk 0:03:41]}
21. Rc7 {[%clk 0:03:50.5]} 21... f4 {[%clk 0:03:32.9]} 22. Bd2 {[%clk
0:03:41.7]} 22... Rb8 {[%clk 0:03:18.2]} 23. Kc2 {[%clk 0:03:36.9]} 23... g5
{[%clk 0:03:08.7]} 24. Nxe4 {[%clk 0:03:29.2]} 24... Bg6 {[%clk 0:03:07.2]} 25.
f3 {[%clk 0:03:24.3]} 25... g4 {[%clk 0:03:05.2]} 26. Kc3 {[%clk 0:03:19.8]}
26... h5 {[%clk 0:02:58.9]} 27. Ng5 {[%clk 0:03:12]} 27... Rd8 {[%clk
0:02:48.4]} 28. Ne6 {[%clk 0:03:08.5]} 28... Rd3+ {[%clk 0:02:46.2]} 29. Kc2
{[%clk 0:02:57.3]} 29... Rd6+ {[%clk 0:02:42.5]} 0-1